[Event "Frauenbundesliga 2024-25"]
[Site "Germany"]
[Date "2024.11.17"]
[Round "2.11"]
[White "Rogozenco, Teodora"]
[Black "Schloffer, Jasmin-Denise"]
[Result "0-1"]
[Annotator "RC"]
[ECO "E01"]
[WhiteElo "2012"]
[BlackElo "2168"]
[PlyCount "54"]
[EventDate "2024.11.06"]
[EventType "team-tourn"]
[EventCountry "GER"]
[SourceTitle "playchess.com"]
[Source "ChessBase"]
[SourceQuality "1"]
[TimeControl "40/5400+30:1800+30"]

1. d4 {[%emt 0:00:03]} Nf6 {[%emt 0:00:06]} 2. g3 {[%emt 0:00:38]} d5 {[%emt 0:02:10]} 3. Bg2 {[%emt 0:00:11]} e6 {[%emt 0:00:06]} 4. c4 {[%emt 0:03:17]} Bb4+ {[%emt 0:00:36]} 5. Bd2 {[%emt 0:01:45]} Bd6 {[%emt 0:00:05]} 6. Nc3 {[%emt 0:08:14]} c6 {[%emt 0:04:25]} 7. e4 {[%emt 0:01:19]} dxe4 {[%emt 0:01:18]} 8. Nxe4 {[%emt 0:00:28]} Nxe4 {[%emt 0:06:09]} 9. Bxe4 {[%emt 0:00:09]} Nd7 {[%emt 0:00:08]} 10. Bg2 {[%emt 0:04:09]} O-O {[%emt 0:02:15]} 11. Ne2 {[%emt 0:00:17]} e5 {[%emt 0:05:12]} 12. d5 {[%emt 0:00:37]} cxd5 {[%emt 0:01:00]} 13. cxd5 {[%emt 0:00:10]} f5 {[%emt 0:03:52]} 14. O-O {[%emt 0:00:51]} b6 {[%emt 0:06:24]} 15. Re1 {[%emt 0:15:43]} Ba6 {[%emt 0:06:37]} 16. Bc3 {[%emt 0:07:49]} Nc5 {[%emt 0:06:34]} 17. Nc1 {[%emt 0:00:43]} Qc7 {[%emt 0:08:52]} 18. Re3 {[%emt 0:09:33]} Rad8 {[%emt 0:10:20]} 19. a3 {[%emt 0:19:54]} e4 {[%emt 0:06:09]} 20. Bf1 {[%emt 0:09:51]} Bxf1 {[%emt 0:05:54]} 21. Kxf1 {[%emt 0:01:58]} f4 {[%emt 0:05:02]} 22. gxf4 {[%emt 0:00:18]} Bxf4 {[%emt 0:00:06]} 23. Rh3 {[%emt 0:00:32]} Qf7 {[%emt 0:01:18]} 24. Qh5 {[%emt 0:02:42]} g6 {[%emt 0:02:19]} 25. Qe2 {[%emt 0:00:05]} Rxd5 {[%emt 0:02:36]} 26. Na2 {[%emt 0:00:07]} Rf5 {[%emt 0:01:37]} 27. Bd4 {[%emt 0:01:39]} Be5 {[%emt 0:02:27]} 0-1

[Event "Frauenbundesliga 2024-25"]
[Site "Germany"]
[Date "2024.11.17"]
[Round "2.12"]
[White "Stangl, Anita"]
[Black "Sickmann, Lisa"]
[Result "0-1"]
[Annotator "COMBH"]
[ECO "B57"]
[WhiteElo "2048"]
[BlackElo "2123"]
[PlyCount "112"]
[EventDate "2024.11.06"]
[EventType "team-tourn"]
[EventCountry "GER"]
[SourceTitle "playchess.com"]
[Source "ChessBase"]
[SourceQuality "1"]
[TimeControl "40/5400+30:1800+30"]

1. e4 {[%emt 1:31:00]} c5 {[%emt 1:31:00]} 2. Nf3 {[%emt 0:00:30]} e6 {[%emt 0:00:30]} 3. d4 {[%emt 0:00:30]} cxd4 {[%emt 0:00:30]} 4. Nxd4 {[%emt 0:00:30]} Nf6 {[%emt 0:00:30]} 5. Bd3 {[%emt 0:00:30]} Nc6 {[%emt 0:00:30]} 6. Nb3 {[%emt 0:00:30]} Qc7 {[%emt 0:00:30]} 7. Nc3 {[%emt 0:00:30]} a6 {[%emt 0:00:30]} 8. O-O {[%emt 0:00:30]} Be7 {[%emt 0:00:30]} 9. f4 {[%emt 0:00:30]} d6 {[%emt 0:00:30]} 10. Be3 {[%emt 0:00:30]} b5 {[%emt 0:00:30]} 11. h3 {[%emt 0:00:30]} Bb7 {[%emt 0:00:30]} 12. Ne2 {[%emt 0:00:30]} Nb4 {[%emt 0:00:30]} 13. a3 {[%emt 0:00:30]} Nxd3 {[%emt 0:00:30]} 14. cxd3 {[%emt 0:00:30]} O-O {[%emt 0:00:30]} 15. Rc1 {[%emt 0:00:30]} Qd7 {[%emt 0:00:30]} 16. Na5 {[%emt 0:00:30]} Rac8 {[%emt 0:00:30]} 17. Nxb7 {[%emt 0:00:30]} Qxb7 {[%emt 0:00:30]} 18. Qd2 {[%emt 0:00:30]} Nd7 {[%emt 0:00:30]} 19. f5 {[%emt 0:00:30]} Nc5 {[%emt 0:00:30]} 20. Qd1 {[%emt 0:00:30]} Bf6 {[%emt 0:00:30]} 21. b4 {[%emt 0:00:30]} Na4 {[%emt 0:00:30]} 22. fxe6 {[%emt 0:00:30]} fxe6 {[%emt 0:00:30]} 23. Qb3 {[%emt 0:00:30]} Qf7 {[%emt 0:00:30]} 24. Nf4 {[%emt 0:00:30]} Rxc1 {[%emt 0:00:30]} 25. Rxc1 {[%emt 0:00:30]} Bb2 {[%emt 0:00:30]} 26. Rc2 {[%emt 0:00:30]} e5 {[%emt 0:00:30]} 27. Nd5 {[%emt 0:00:30]} Kh8 {[%emt 0:00:30]} 28. Rf2 {[%emt 0:00:30]} Qe8 {[%emt 0:00:30]} 29. Rxb2 {[%emt 0:00:30]} Nxb2 {[%emt 0:00:30]} 30. Qxb2 {[%emt 0:00:30]} Qf7 {[%emt 0:00:30]} 31. Qf2 {[%emt 0:00:30]} Qxf2+ {[%emt 0:00:30]} 32. Bxf2 {[%emt 0:00:30]} Rc8 {[%emt 0:00:30]} 33. Bh4 {[%emt 0:00:30]} Rc2 {[%emt 0:00:30]} 34. Be7 {[%emt 0:00:30]} Rd2 {[%emt 0:00:30]} 35. Bxd6 {[%emt 0:00:30]} Rxd3 {[%emt 0:00:30]} 36. Bxe5 {[%emt 0:00:30]} Rxa3 {[%emt 0:00:30]} 37. Bd6 {[%emt 0:00:30]} Rd3 {[%emt 0:00:30]} 38. Kf2 {[%emt 0:00:30]} Kg8 {[%emt 0:00:30]} 39. Bc5 {[%emt 0:00:30]} Rd2+ {[%emt 0:00:30]} 40. Kf3 {[%emt 0:00:30]} Rc2 {[%emt 0:00:30]} 41. Nc7 {[%emt 0:30:30]} a5 {[%emt 0:30:30]} 42. Nxb5 {[%emt 0:00:30]} axb4 {[%emt 0:00:30]} 43. Bd4 {[%emt 0:00:30]} b3 {[%emt 0:00:30]} 44. Na3 {[%emt 0:00:30]} Rd2 {[%emt 0:00:30]} 45. Be5 {[%emt 0:00:30]} b2 {[%emt 0:00:30]} 46. Ke3 {[%emt 0:00:30]} Rxg2 {[%emt 0:00:30]} 47. Kd3 {[%emt 0:00:30]} g5 {[%emt 0:00:30]} 48. Kc4 {[%emt 0:00:30]} h5 {[%emt 0:00:30]} 49. Kb3 {[%emt 0:00:30]} h4 {[%emt 0:00:30]} 50. Bxb2 {[%emt 0:00:30]} g4 {[%emt 0:00:30]} 51. Bf6 {[%emt 0:00:30]} gxh3 {[%emt 0:00:30]} 52. Be5 {[%emt 0:00:30]} h2 53. Bxh2 Rxh2 {[%emt 0:01:00]} 54. Nc4 {[%emt 0:01:00]} h3 {[%emt 0:00:30]} 55. Ne3 {[%emt 0:00:30]} Re2 {[%emt 0:00:30]} 56. Ng4 {[%emt 0:00:30]} h2 {[%emt 0:00:30]} 0-1

[Event "Frauenbundesliga 2024-25"]
[Site "Germany"]
[Date "2025.01.25"]
[Round "3.1"]
[White "Paehtz, Elisabeth"]
[Black "Maltsevskaya, Aleksandra"]
[Result "1/2-1/2"]
[Annotator "TA"]
[ECO "B15"]
[WhiteElo "2428"]
[BlackElo "2368"]
[PlyCount "45"]
[EventDate "2024.11.06"]
[EventType "team-tourn"]
[EventCountry "GER"]
[SourceTitle "playchess.com"]
[Source "ChessBase"]
[SourceQuality "1"]
[WhiteTeam "Baden-Baden"]
[BlackTeam "Bad Koenigshofen"]
[TimeControl "40/5400+30:1800+30"]

{[%evp 19,45,0,0,0,0,10,19,7,16,14,79,7,9,9,12,9,19,10,12,4,9,0,0,0,0,0,0,0]} 1. e4 {[%emt 0:00:03]} c6 {[%emt 0:00:17]} 2. Nc3 {[%emt 0:00:04]} d5 {[%emt 0:00:08]} 3. Nf3 {[%emt 0:00:04]} g6 {[%emt 0:00:36]} 4. d4 {[%emt 0:00:18]} dxe4 {[%emt 0:01:05]} 5. Nxe4 {[%emt 0:00:05]} Bg7 {[%emt 0:00:05]} 6. h3 {[%emt 0:00:06]} Nd7 {[%emt 0:02:12]} 7. Bd3 {[%emt 0:00:52][%cal Bf1d3,Bd3e4,Be4c2,Bc2b3][%mdl 32]} Ngf6 {[%emt 0:01:44]} 8. O-O {[%emt 0:03:01]} Nxe4 {[%emt 0:02:00]} 9. Bxe4 {[%emt 0:00:05]} O-O {[%emt 1:26:53]} 10. c3 {[%emt 1:30:52]} e5 {[%emt 0:00:00]} 11. Bc2 {[%emt 0:00:00] 11.Bg5 is the modern continuation. B15: Caro-Kann: 3 Nc3: 3...g6 and 3...dxe4 4 Nxe4 Nf6 5 Nxf6+ exf6.} exd4 {[%emt 0:00:00]} 12. Nxd4 {[%emt 0:00:00]} Re8 {[%emt 0:00:00]} 13. Be3 {[%emt 0:00:00]} Ne5 {[%emt 0:00:00]} 14. Bb3 $146 {[%emt 0:00:00]} (14. Qe2 c5 15. Nb5 Be6 16. b3 Qb6 17. Rad1 Rad8 18. Rxd8 Rxd8 19. c4 Nc6 20. Bf4 {½-½ Wagner,R (2176)-Grabner,H (2190) AUT Wien-ch4 email 2012}) 14... Qh4 {[%emt 0:00:00]} (14... b6 $11) 15. Nf3 {[%emt 0:00:00]} (15. Qd2 $16 {aiming for Bg5.} Bxh3 16. Bg5 (16. gxh3 Qxh3 17. Bg5 Qg4+ 18. Kh2 h6 $11)) 15... Nxf3+ $11 {[%emt 0:00:00] The position is equal.} 16. Qxf3 {[%emt 0:00:00]} Be6 {[%emt 0:00:00]} 17. Bxe6 {[%emt 0:00:00]} Rxe6 {[%emt 0:00:00]} 18. Rfd1 {[%emt 0:00:00]} Qe7 {[%emt 0:00:00] Dodges Rd7} 19. Rd2 {[%emt 0:00:00]} Rd8 {[%emt 0:00:00]} 20. Rad1 {[%emt 0:00:00]} Rxd2 {[%emt 0:00:00]} 21. Rxd2 {[%emt 0:00:00][%cal Of3d1]} a6 {[%emt 0:00:00]} 22. Qd1 {[%emt 0:00:00]} Bf8 {[%emt 0:00:00]} 23. Rd7 {[%emt 0:00:00] Weighted Error Value: White=0.17 (very precise) /Black=0.10 (very precise)   Mistake:       	White=1     	Black=1      OK:         	White=1     	Black=7} 1/2-1/2

[Event "Frauenbundesliga 2024-25"]
[Site "Germany"]
[Date "2025.01.25"]
[Round "3.1"]
[White "Antolak, Julia"]
[Black "Peglau, Charis"]
[Result "1-0"]
[Annotator "TA"]
[ECO "B17"]
[WhiteElo "2300"]
[BlackElo "2210"]
[PlyCount "73"]
[EventDate "2024.11.06"]
[EventType "team-tourn"]
[EventCountry "GER"]
[SourceTitle "playchess.com"]
[Source "ChessBase"]
[SourceQuality "1"]
[WhiteTeam "Harksheide"]
[BlackTeam "Dippoldiswalde"]
[TimeControl "40/5400+30:1800+30"]

{[%evp 14,73,37,29,36,35,33,37,29,30,41,24,38,32,69,68,56,57,75,64,66,73,66,56,106,113,124,75,320,312,773,779,735,700,627,397,406,389,393,363,431,320,345,343,443,402,445,429,449,448,500,487,510,503,455,450,429,436,777,776,750,739]} 1. e4 {[%emt 0:00:09]} c6 {[%emt 0:00:05]} 2. d4 {[%emt 0:00:05]} d5 {[%emt 0:00:04]} 3. Nd2 {[%emt 0:00:09]} dxe4 {[%emt 0:00:09]} 4. Nxe4 {[%emt 0:00:06]} Nd7 {[%emt 0:00:06]} 5. Bc4 {[%emt 0:00:31]} Ngf6 {[%emt 0:00:13]} 6. Nxf6+ {[%emt 0:00:15]} Nxf6 {[%emt 0:00:09]} 7. c3 $1 {[%emt 0:00:07] 7.c3 is better than 7.Nf3.} e6 {[%emt 0:00:25]} 8. Nf3 {[%emt 0:01:13]} Bd6 {[%emt 0:01:15] B17: Caro-Kann: Modern Line (4...Nd7).} 9. O-O {[%emt 0:02:52]} O-O {[%emt 0:00:59]} 10. Bg5 {[%emt 0:04:21]} h6 {[%emt 0:23:34] White is slightly better.} 11. Bh4 {[%emt 0:00:26]} b6 $146 {[%emt 0:00:18]} (11... Be7 12. Ne5 Nd7 13. Bxe7 Qxe7 14. Qe2 Nb6 15. Bb3 Nd5 16. Bxd5 exd5 17. Qf3 Be6 {1-0 Ruiz Agudelo,J (1371)-Diaz Pisfil,A (1179) Pan American-ch U10 2019 (7)}) 12. Qe2 {[%emt 0:04:38]} Bb7 {[%emt 0:03:40]} 13. Rad1 {[%emt 0:05:25]} Be7 {[%emt 0:07:31]} 14. Ne5 {[%emt 0:09:58]} Nd5 {[%emt 0:05:04]} 15. Bxd5 {[%emt 0:05:13]} cxd5 {[%emt 0:01:07]} 16. Bxe7 {[%emt 0:01:04]} Qxe7 {[%emt 0:00:02]} 17. f4 {[%emt 0:00:34]} a5 {[%emt 0:02:48]} 18. Rf3 {[%emt 0:06:44][%cal Bf1f3,Bf3g3,Bg3g6][%mdl 32]} b5 {[%emt 0:09:19]} 19. Rg3 $16 {[%emt 0:07:22][%cal Oe5g4]} (19. Qxb5 Ba6 20. Qc5 (20. Qxa5 $2 {perishes.} Be2 $19) 20... Qxc5 21. dxc5 Be2 $17) 19... b4 {[%emt 0:25:38]} 20. Qh5 $40 {[%emt 0:04:20][%mdl 128] White attacks White wants a kill. White is much more active.} (20. Qg4 $142 {[%csl Gg3][%cal Rg4g7]} f5 21. Qf3) 20... Kh7 {[%emt 0:00:55] [#] This move loses the game for Black.} (20... f6 $16 21. Nd3 bxc3) 21. Rdd3 $1 $18 {[%emt 0:03:07][%cal Og3g7]} f5 $2 {[%emt 0:08:35]} (21... f6) 22. Rg6 {[%emt 0:05:35]} Rf6 {[%emt 0:04:42]} 23. Rh3 {[%emt 0:02:21][%cal Rh5h6]} Qf8 {[%emt 0:00:36]} 24. Nd7 {[%emt 0:06:03][%cal Oh5h6] Threatening mate with Qxh6+!.} Rxg6 {[%emt 0:00:07]} 25. Nxf8+ {[%emt 0:00:06]} Rxf8 {[%emt 0:00:03]} 26. Qe2 {[%emt 0:00:22]} Ra8 {[%emt 0:03:13]} 27. cxb4 {[%emt 0:03:31]} axb4 {[%emt 0:00:09]} 28. Qb5 {[%emt 0:01:34]} Rc8 {[%emt 0:02:10] [#] ...Rc1+ would now be deadly.} 29. Rg3 {[%emt 0:02:41]} ({Inferior is} 29. Qxb7 Rc1+ 30. Kf2 Rc2+ 31. Ke3 Rgxg2 $11) 29... Rc1+ {[%emt 0:00:40]} 30. Kf2 {[%emt 0:00:06] White is clearly winning.} Rc2+ {[%emt 0:01:06]} 31. Ke1 {[%emt 0:00:28]} Rxg3 {[%emt 0:00:35]} 32. hxg3 {[%emt 0:00:25] KQ-KRB} Bc6 {[%emt 0:00:37]} 33. Qxb4 {[%emt 0:01:14]} Rxg2 {[%emt 0:00:21]} 34. Qd6 {[%emt 0:04:06]} Bb5 {[%emt 0:00:42]} 35. Qxe6 {[%emt 0:00:45]} Rxb2 {[%emt 0:00:27]} (35... Bd3 $142 36. Qxd5 Re2+ 37. Kd1 Rxb2) 36. Qxf5+ {[%emt 0:00:24]} Kh8 {[%emt 0:00:05]} 37. Qxd5 {[%emt 0:00:15] Weighted Error Value: White=0.15 (very precise) /Black=0.64  Loses game:     	---       	Black=1      Mistake:       	White=1     	Black=3      Inaccurate:     	---       	Black=1      OK:         	White=13    	Black=4      Best:        	White=3     	Black=1      Strong:       	White=1     	---} 1-0

[Event "Frauenbundesliga 2024-25"]
[Site "Germany"]
[Date "2025.01.25"]
[Round "3.1"]
[White "Klek, Hanna Marie"]
[Black "Dolzhykova, Kateryna"]
[Result "0-1"]
[Annotator "TA"]
[ECO "B15"]
[WhiteElo "2290"]
[BlackElo "2299"]
[PlyCount "82"]
[EventDate "2024.11.06"]
[EventType "team-tourn"]
[EventCountry "GER"]
[SourceTitle "playchess.com"]
[Source "ChessBase"]
[SourceQuality "1"]
[WhiteTeam "Schachfreunde Deizisau"]
[BlackTeam "SG Solingen"]
[TimeControl "40/5400+30:1800+30"]

{[%evp 14,82,27,32,37,20,49,36,31,8,27,46,45,-25,-12,-29,-20,-23,0,0,0,0,0,0,1,-34,-53,-35,-42,-50,-53,-57,-37,-97,-106,-98,-97,-94,-110,-109,-113,-339,-100,-104,-70,-77,-60,-87,-37,-29,0,-60,0,-71,-63,-381,-16,-127,-12,-14,0,-49,-49,-64,-63,-237,-215,-29987,-29988,-29985,-870]} 1. e4 {[%emt 0:00:03]} c6 {[%emt 0:00:10]} 2. d4 {[%emt 0:00:07]} d5 {[%emt 0:00:06]} 3. Nc3 {[%emt 0:00:04]} dxe4 {[%emt 0:00:07]} 4. Nxe4 {[%emt 0:00:05]} Nf6 {[%emt 0:00:08]} 5. Nxf6+ {[%emt 0:00:13]} exf6 {[%emt 0:00:10]} 6. c3 {[%emt 0:00:08]} Bd6 {[%emt 0:00:16]} 7. Bd3 {[%emt 0:00:07]} O-O {[%emt 0:00:10]} 8. Qc2 {[%emt 0:00:06]} Re8+ {[%emt 0:00:06] B15: Caro-Kann: 3 Nc3: 3...g6 and 3...dxe4 4 Nxe4 Nf6 5 Nxf6+ exf6.} 9. Ne2 {[%emt 0:00:05]} h5 {[%emt 0:00:06]} 10. Be3 {[%emt 0:00:14]} Nd7 {[%emt 0:00:39] White is slightly better.} 11. c4 {[%emt 0:00:22]} f5 $146 {[%emt 0:01:26]} (11... Nf8 12. O-O-O Be6 13. Kb1 Ng6 14. h3 h4 15. Rhe1 Ne7 16. Nc3 Qd7 17. a3 Rac8 {1-0 Nepomniachtchi,I (2771)-Dreev,A (2606) Moscow Dvoretsky Memorial Blitz 2023 (6)}) 12. Bxf5 {[%emt 0:06:30]} Nf6 {[%emt 0:00:16] Wards off Bh7+} 13. Bxc8 {[%emt 0:05:31]} (13. O-O $14) 13... Rxc8 $11 {[%emt 0:00:40]} 14. h3 {[%emt 0:05:12] Against Ng4} Bb4+ {[%emt 0:08:55][%mdl 1024] Black sacrificed a pawn Black has compensation.} 15. Kf1 {[%emt 0:01:06]} Ne4 {[%emt 0:04:12]} 16. h4 {[%emt 0:06:30]} Qf6 {[%emt 0:09:37][%cal Ob4d2]} 17. Rh3 {[%emt 0:04:11]} Bd2 {[%emt 0:06:19]} 18. Rf3 {[%emt 0:20:35]} (18. Bxd2 $2 Qxf2#) 18... Qg6 {[%emt 0:00:14][%cal Oe4g3]} 19. Qd1 {[%emt 0:03:08]} (19. Bxd2 $2 Ng3+ 20. Nxg3 Qxc2 $19) 19... Bxe3 {[%emt 0:00:48]} 20. fxe3 {[%emt 0:02:22]} Nd6 {[%emt 0:01:41]} 21. Rc1 {[%emt 0:08:46]} Nf5 $1 {[%emt 0:05:38]} 22. Rc3 {[%emt 0:00:51]} Re4 {[%emt 0:02:33][%cal Oc8e8]} 23. Nf4 {[%emt 0:12:54]} (23. g3 $1 $15) 23... Qg4 $17 {[%emt 0:01:41][%cal Of5e3]} 24. Qd2 {[%emt 0:02:44]} Rce8 {[%emt 0:09:12]} (24... Qxh4 25. Nh3 Ng3+ 26. Kg1 $11) 25. Kg1 {[%emt 0:01:01]} Nxh4 {[%emt 0:03:50] Black attacks} 26. Rf2 {[%emt 0:01:45]} Nf5 {[%emt 0:02:20][%cal Rf5e3]} 27. Nd3 $2 {[%emt 0:03:56]} (27. Rf3 $17 {was forced.}) 27... Ng3 $2 {[%emt 0:05:37]} (27... Rxe3 28. Ne5 Qxd4 29. Qxd4 Re1+ 30. Kh2 Nxd4 31. Nxf7 $19) (27... Nxe3 $19 28. Nc5 Nxc4 (28... Rxd4 $2 29. Rd3 $19) (28... R4e7 $2 29. d5 $19) 29. Nxe4 (29. Rxc4 $2 Re1+ 30. Rf1 R8e2 $19) 29... Nxd2 30. Nxd2 Re1+ (30... Qxd4 $2 31. Nf3 $19) 31. Nf1 Qxd4) 28. Rf3 {[%emt 0:01:29]} Qh4 {[%emt 0:11:32]} 29. Nf2 {[%emt 0:00:13][%cal Od4d5] Against Qh1+} R4e6 {[%emt 0:06:36]} 30. d5 {[%emt 0:01:17]} Rd6 {[%emt 0:04:46]} (30... Rg6 $1 $17 31. Qc2 Qg5) 31. Rd3 $15 {[%emt 0:02:47]} cxd5 {[%emt 0:03:28]} 32. cxd5 {[%emt 0:01:03]} ({White should play} 32. Rxd5 $11 Rg6 33. Qd3) 32... f5 {[%emt 0:01:18][%csl Oe3,Og2] White has weak pawns} (32... Qg5 $1 $15) 33. Nh3 {[%emt 0:04:07]} (33. Qc2 $11) 33... Ne4 $17 {[%emt 0:04:09][%csl Oe4] Strong Square Black (e4) Black has more active pieces.} 34. Qb4 {[%emt 0:02:59][%mdl 8192]} (34. Qc2 $15) 34... Rb6 $2 {[%emt 0:01:03]} (34... Rg6 $19 35. Qa4 Qe1+ 36. Kh2 (36. Rf1 $2 Rxg2+ 37. Kxg2 Qg3+ 38. Kh1 Qxh3+ 39. Kg1 Qg4+ 40. Kh2 Rc8 $19) 36... Nf6) 35. Qd4 {[%emt 0:00:08] [#]} (35. Qc4 $11) 35... Rg6 {[%emt 0:01:10]} ({Black should try} 35... Rc8 $1 $17 {[%cal Rc8c2]} 36. Rc3 (36. Rxf5 $2 Rg6 $19) 36... Rxc3 37. bxc3 Qg4) 36. Nf4 $1 $11 {[%emt 0:01:45]} Rg3 {[%emt 0:02:44] Really sharp!} 37. Rxg3 {[%emt 0:02:33]} (37. Qxa7 Rxf3 38. Rd1 Rxf4 39. exf4 Ng3) (37. d6 $11 Rxf3 38. Qd5+ Kh7 39. Qxf5+ (39. gxf3 $2 Qf2+ 40. Kh1 Ng3#) 39... Kg8 40. Qd5+ Kh7 41. Qf5+) 37... Qxg3 $15 {[%emt 0:01:43]} 38. Rd1 {[%emt 0:01:00][%cal Od5d6] Dodges Qe1+} ({Avoid the trap} 38. d6 $2 Qe1+ 39. Kh2 Nf6 40. Nxh5 (40. Qxa7 $2 {is a self mate.} Ng4+ 41. Kh3 h4 42. Qxb7 Qh1#) 40... Ng4+ (40... Nxh5 41. d7 $15) 41. Kh3 Qh1+ (41... Nxe3 42. Qxg7#) 42. Kg3 Qh2+ (42... Qxh5 $2 43. d7 $19) 43. Kf3 Qxh5 $19 (43... Ne5+ $2 44. Kf2 $19)) 38... Qf2+ $40 {[%emt 0:00:36][%mdl 128] Black has some attack.} 39. Kh2 $2 {[%emt 0:00:19] [#]} (39. Kh1 $1 $15) 39... Ng5 $1 $19 {[%emt 0:00:54] ...Nf3+ would now be deadly.} (39... g5 40. Ne6 Re7 41. Rc1 $11) 40. Qc4 $2 {[%emt 0:00:47]} (40. Kh1 $19 Rxe3 (40... Qxe3 41. Qxe3 Rxe3 42. d6 $11) 41. Ne6 Nxe6 42. dxe6) 40... Nf3+ {[%emt 0:00:23]} ({Worse is} 40... Qxb2 41. d6+ (41. Nxh5 Nf3+ 42. Kh1 Ne5 $11) 41... Kh7 42. d7 $16 (42. Nxh5 Rxe3 43. Ng3 Nf3+ 44. Kh3 Ng5+ 45. Kh2 Nf3+ 46. Kh3 Re6 $19)) 41. Kh1 {[%emt 0:30:24]} Qh4+ {[%emt 0:30:01] Weighted Error Value: White=0.59/Black=0.38  Loses game:     	White=3     	---        Missed win:     	---       	Black=2      Mistake:       	White=7     	Black=3      Inaccurate:     	White=2     	Black=3      OK:         	White=10    	Black=11     Best:        	White=2     	Black=3      Strong:       	White=1     	Black=2} 0-1